bitfinex/quotes_BTCUSD_20240831
["timestamp","ask_amount","ask_price","bid_price","bid_amount"]
[1725139328300,0.01853125,59125.0,59124.0,0.67009014]
[1725139334234,0.04506699,59125.0,59124.0,0.67009014]
[1725139334922,0.10719116,59135.0,59124.0,0.4975718]
[1725139335150,0.1,59132.0,59126.0,0.1449]
[1725139335390,0.169119,59130.0,59128.0,0.0789]
[1725139335595,0.169119,59130.0,59129.0,0.066]
[1725139336765,0.02653524,59131.0,59129.0,0.066]
[1725139337186,0.19565124,59131.0,59129.0,0.07]
[1725139337870,0.19565124,59131.0,59129.0,0.068]
[1725139338100,0.19565124,59131.0,59129.0,0.069]
[1725139338536,0.19565124,59131.0,59129.0,0.067]
[1725139338749,0.19565124,59131.0,59129.0,0.068]
[1725139340092,0.169118,59130.0,59129.0,0.068]
[1725139340976,0.169118,59130.0,59129.0,0.067]
[1725139341184,0.169118,59130.0,59129.0,0.069]
[1725139341642,0.169118,59130.0,59129.0,0.068]
[1725139341855,0.169118,59130.0,59129.0,0.07]
[1725139347271,0.19647024,59131.0,59129.0,0.07]
[1725139348445,0.19647024,59131.0,59129.0,0.068]
[1725139348446,0.02735324,59131.0,59129.0,0.068]
[1725139348636,0.02735324,59131.0,59129.0,0.069]
[1725139348860,0.19646924,59131.0,59129.0,0.069]
[1725139349324,0.19646924,59131.0,59129.0,0.067]
[1725139349547,0.19646924,59131.0,59129.0,0.068]
[1725139350044,0.169118,59130.0,59129.0,0.068]
[1725139350928,0.169118,59130.0,59129.0,0.067]
[1725139351140,0.169118,59130.0,59129.0,0.069]
[1725139351382,0.169118,59130.0,59129.0,0.068]
[1725139352947,0.169118,59130.0,59129.0,0.07]
[1725139356533,0.04601619,59132.0,59129.0,0.07]
[1725139356763,0.026535,59130.0,59129.0,0.07]
[1725139357459,0.026535,59130.0,59129.0,0.068]
[1725139357687,0.026535,59130.0,59129.0,0.657064]
[1725139357913,0.026535,59130.0,59129.0,0.995307]
[1725139358174,0.169097,59138.0,59133.0,0.231908]
[1725139358402,0.169097,59138.0,59134.0,0.0628]
[1725139359079,0.169099,59137.0,59134.0,0.0628]
[1725139359334,0.169099,59137.0,59136.0,0.0611]
[1725139360012,0.177097,59138.0,59136.0,0.0611]
[1725139360473,0.173097,59138.0,59136.0,0.0611]
[1725139360710,0.004,59137.0,59136.0,0.0611]
[1725139360929,0.004,59137.0,59136.0,0.0671]
[1725139362302,0.004,59137.0,59136.0,0.0721]
[1725139362561,0.169097,59138.0,59136.0,0.0611]
[1725139362793,0.169097,59138.0,59136.0,0.0731]
[1725139363018,0.169097,59138.0,59136.0,0.0661]
[1725139363254,0.169097,59138.0,59136.0,0.0611]
[1725139363459,0.169098,59137.0,59136.0,0.0681]
[1725139364046,0.169098,59137.0,59136.0,0.0671]
[1725139364255,0.169098,59137.0,59136.0,0.0731]
[1725139365033,0.169916,59137.0,59136.0,0.0731]
[1725139365298,0.169916,59137.0,59136.0,0.0671]
[1725139365523,0.169916,59137.0,59136.0,0.0741]
[1725139365721,0.169916,59137.0,59136.0,0.0681]
[1725139366100,0.169916,59137.0,59136.0,0.0751]
[1725139367804,0.19644717,59137.0,59136.0,0.0751]
[1725139368378,0.169916,59137.0,59136.0,0.0751]
[1725139369037,0.508113,59137.0,59136.0,0.0751]
[1725139371962,0.508113,59137.0,59136.0,0.014]
[1725139376832,0.44537716,59139.0,59136.0,0.014]
[1725139377046,0.169098,59137.0,59136.0,0.014]
[1725139377262,0.507295,59137.0,59136.0,0.014]
[1725139377467,0.507295,59137.0,59136.0,0.0751]
[1725139377941,0.508113,59137.0,59136.0,0.1536]
[1725139379431,0.169916,59137.0,59136.0,0.1536]
[1725139379659,0.169916,59137.0,59136.0,0.1466]
[1725139380601,0.169916,59137.0,59136.0,0.1516]
[1725139381050,0.169916,59137.0,59136.0,0.1466]
[1725139381277,0.169916,59137.0,59136.0,0.1536]
[1725139385077,0.19644697,59137.0,59136.0,0.1536]
[1725139386940,0.000818,59137.0,59136.0,0.1536]
[1725139388937,0.000818,59137.0,59136.0,0.322701]
[1725139389583,0.000818,59137.0,59136.0,0.66428566]
[1725139390023,0.0273483,59137.0,59136.0,0.66428566]
[1725139390736,0.0273483,59137.0,59136.0,0.66518546]
[1725139390951,0.0273483,59137.0,59136.0,0.6618038]
[1725139392938,0.000818,59137.0,59136.0,0.6618038]
[1725139395329,0.000818,59137.0,59136.0,1.0000068]
[1725139396060,0.02734786,59137.0,59136.0,1.0000068]
[1725139399351,0.000818,59137.0,59136.0,1.0000068]
[1725139404927,0.02734781,59137.0,59136.0,1.0000068]
[1725139406484,0.000818,59137.0,59136.0,1.0000068]
[1725139411152,0.02734736,59137.0,59136.0,1.0000068]
[1725139413842,0.000818,59137.0,59136.0,1.0000068]
[1725139417237,0.02734873,59137.0,59136.0,1.0000068]
[1725139417697,0.000818,59137.0,59136.0,1.0000068]
[1725139420885,0.027348,59137.0,59136.0,1.0000068]
[1725139424637,0.000818,59137.0,59136.0,1.0000068]
[1725139427921,0.02734782,59137.0,59136.0,1.0000068]
[1725139431630,0.02734782,59137.0,59136.0,0.9930068]
[1725139431841,0.02734782,59137.0,59136.0,1.0000068]
[1725139432293,0.02734782,59137.0,59136.0,0.9930068]
[1725139432516,0.02734782,59137.0,59136.0,1.03671299]
[1725139432841,0.02734782,59137.0,59136.0,1.0000068]
[1725139432931,0.02734782,59137.0,59136.0,1.0070068]
[1725139433134,0.02734782,59137.0,59136.0,1.0000068]
[1725139433573,0.02734782,59137.0,59136.0,1.0140068]
[1725139434642,0.000818,59137.0,59136.0,1.0140068]
[1725139436640,0.000818,59137.0,59136.0,1.3522098]
[1725139437045,0.000818,59137.0,59136.0,1.40291599]
[1725139437979,0.02734706,59137.0,59136.0,1.3522098]
[1725139438159,0.02734706,59137.0,59136.0,1.40291599]
[1725139438808,0.02734706,59137.0,59136.0,1.3522098]
[1725139439037,0.02734706,59137.0,59136.0,1.40291599]
[1725139442046,0.000818,59137.0,59136.0,1.40291599]
[1725139442170,0.000818,59137.0,59136.0,1.3522098]
[1725139442376,0.000818,59137.0,59136.0,1.40292121]
[1725139442625,0.000818,59137.0,59136.0,1.3522098]
[1725139444323,0.000818,59137.0,59136.0,1.2737098]
[1725139444857,0.038518,59137.0,59136.0,0.24870856]
[1725139445058,0.038518,59137.0,59136.0,0.5362038]
[1725139445059,0.06504685,59137.0,59136.0,0.5362038]
[1725139446325,0.06504685,59137.0,59136.0,0.0288998]
[1725139446529,0.06504685,59137.0,59136.0,0.1980008]
[1725139446688,0.038518,59137.0,59136.0,0.1980008]
[1725139447807,0.000818,59137.0,59136.0,0.5362038]
[1725139448427,0.02734815,59137.0,59136.0,0.5362038]
[1725139449946,0.27210368,59142.0,59136.0,0.1980008]
[1725139450466,0.16909,59140.0,59136.0,0.1980008]
[1725139450913,0.16909,59140.0,59136.0,0.1700008]
[1725139451155,0.000818,59137.0,59136.0,0.1700008]
[1725139451348,0.508113,59137.0,59136.0,0.0238998]
[1725139451864,0.508113,59137.0,59136.0,0.0128998]
[1725139452076,0.508113,59137.0,59136.0,0.0268998]
[1725139452549,0.508113,59137.0,59136.0,0.0128998]
[1725139452795,0.169916,59137.0,59136.0,0.0128998]
[1725139453003,0.508113,59137.0,59136.0,0.0268998]
[1725139453227,0.508113,59137.0,59136.0,0.0148998]
[1725139453704,0.508113,59137.0,59136.0,0.0288998]
[1725139453902,0.508113,59137.0,59136.0,0.0148998]
[1725139454185,0.508113,59137.0,59136.0,0.0288998]
[1725139454399,0.169916,59137.0,59136.0,0.0288998]
[1725139456838,0.19644732,59137.0,59136.0,0.0288998]
[1725139457697,0.02734932,59137.0,59136.0,0.0288998]
[1725139458154,0.19644732,59137.0,59136.0,0.0288998]
[1725139458788,0.02734932,59137.0,59136.0,0.0288998]
[1725139459464,0.000818,59137.0,59136.0,0.1980008]
[1725139459685,0.000818,59137.0,59136.0,0.5996038]
[1725139463516,0.000818,59137.0,59136.0,0.9378068]
[1725139467169,0.02734728,59137.0,59136.0,0.9378068]
[1725139472414,0.02734728,59137.0,59136.0,0.9238068]
[1725139472548,0.02734728,59137.0,59136.0,0.9098068]
[1725139472783,0.02734728,59137.0,59136.0,0.9378068]
[1725139474665,0.000818,59137.0,59136.0,0.9378068]
[1725139477953,0.02734757,59137.0,59136.0,0.9378068]
[1725139479668,0.02734757,59137.0,59136.0,0.9238068]
[1725139480109,0.02734757,59137.0,59136.0,0.9378068]
[1725139480945,0.000818,59137.0,59136.0,0.9378068]
[1725139484414,0.02734744,59137.0,59136.0,0.9378068]
[1725139487361,0.000818,59137.0,59136.0,0.9378068]
[1725139487807,0.000818,59137.0,59136.0,1.0158068]
[1725139491198,0.000818,59137.0,59136.0,1.06651399]
[1725139491420,0.000818,59137.0,59136.0,1.40471699]
[1725139492298,0.08099421,59150.0,59142.0,0.0612]
[1725139492502,0.25005821,59150.0,59145.0,0.169074]
[1725139492726,0.169065,59149.0,59145.0,0.169074]
[1725139492975,0.19559331,59149.0,59145.0,0.169074]
[1725139493671,0.02652831,59149.0,59146.0,0.169072]
[1725139493876,0.02652831,59149.0,59146.0,0.230272]
[1725139494919,0.02652831,59149.0,59146.0,0.233272]
[1725139495121,0.25005521,59150.0,59146.0,0.233272]
[1725139495330,0.1,59149.0,59146.0,0.233272]
[1725139496189,0.1,59149.0,59146.0,0.236272]
[1725139496597,0.1,59149.0,59146.0,0.006]
[1725139496780,0.18099421,59150.0,59147.0,0.16907]
[1725139497607,0.35005521,59150.0,59147.0,0.16907]
[1725139497807,0.35005521,59150.0,59146.0,0.172073]
[1725139498037,0.35005521,59150.0,59147.0,0.002]
[1725139498420,0.37658284,59150.0,59147.0,0.002]
[1725139499123,0.20752184,59150.0,59148.0,0.235567]
[1725139499336,0.20752184,59150.0,59148.0,0.0665]
[1725139500240,0.12652763,59150.0,59148.0,0.0665]
[1725139500468,0.12652763,59150.0,59148.0,0.0705]
[1725139500469,0.000818,59149.0,59148.0,0.0705]
[1725139500660,0.000818,59149.0,59148.0,0.239567]
[1725139500889,0.000818,59149.0,59148.0,0.915835]
[1725139501129,0.000818,59149.0,59148.0,0.577701]
[1725139501553,0.000818,59149.0,59148.0,0.575701]
[1725139501765,0.000818,59149.0,59148.0,0.573701]
[1725139501976,0.000818,59149.0,59148.0,0.576701]
[1725139502410,0.000818,59149.0,59148.0,0.573701]
[1725139502836,0.000818,59149.0,59148.0,0.590701]
[1725139503042,0.000818,59149.0,59148.0,0.587701]
[1725139503438,0.000818,59149.0,59148.0,0.601701]
[1725139504720,0.0273429,59149.0,59148.0,0.601701]
[1725139505589,0.44527016,59158.0,59150.0,0.338122]
[1725139505590,0.10719116,59158.0,59150.0,0.338122]
[1725139506244,0.169043,59157.0,59151.0,0.169056]
[1725139507332,0.169044,59156.0,59151.0,0.169056]
[1725139507546,0.169044,59156.0,59151.0,0.174056]
[1725139507763,0.19556872,59156.0,59151.0,0.174056]
[1725139508421,0.19556872,59156.0,59151.0,0.179056]
[1725139508880,0.19556872,59156.0,59151.0,0.174056]
[1725139509090,0.44528616,59155.0,59151.0,0.011]
[1725139509302,0.16905,59154.0,59151.0,0.011]
[1725139509717,0.16905,59154.0,59151.0,0.006]
[1725139509911,0.16905,59154.0,59151.0,0.012]
[1725139510304,0.16905,59154.0,59151.0,0.006]
[1725139510710,0.16905,59154.0,59151.0,0.015]
[1725139511114,0.16905,59154.0,59151.0,0.009]
[1725139511339,0.16905,59154.0,59151.0,0.016]
[1725139511953,0.169052,59154.0,59151.0,0.009]
[1725139512157,0.169052,59154.0,59151.0,0.017]
[1725139512366,0.16987,59154.0,59151.0,0.017]
[1725139514314,0.000818,59154.0,59151.0,0.017]
[1725139516721,0.000818,59154.0,59152.0,0.0665]
[1725139517935,0.02734231,59154.0,59152.0,0.0745]
[1725139518526,0.000818,59154.0,59152.0,0.0745]
[1725139519237,0.000818,59154.0,59152.0,0.0835]
[1725139520307,0.000818,59154.0,59152.0,0.252555]
[1725139526507,0.000818,59154.0,59153.0,0.0607]
[1725139526706,0.000818,59154.0,59153.0,0.1407]
[1725139526907,0.000818,59154.0,59153.0,0.309753]
[1725139527784,0.0273415,59154.0,59153.0,0.309753]
[1725139528189,0.0273415,59154.0,59153.0,0.317753]
[1725139528563,0.000818,59154.0,59153.0,0.317753]
[1725139529248,0.000818,59154.0,59153.0,0.326753]
[1725139533719,0.000818,59154.0,59153.0,0.1577]
[1725139536935,0.000818,59154.0,59153.0,0.1585998]
[1725139537860,0.0273416,59154.0,59153.0,0.1585998]
[1725139541650,0.000818,59154.0,59153.0,0.1585998]
[1725139544800,0.02734156,59154.0,59153.0,0.1585998]
[1725139547733,0.000818,59154.0,59153.0,0.1585998]
[1725139548674,0.000818,59154.0,59153.0,0.3276528]
[1725139550057,0.000818,59154.0,59153.0,0.1585998]
[1725139550732,0.338065,59161.0,59153.0,0.1585998]
[1725139550733,0.338066,59160.0,59153.0,0.1585998]
[1725139550955,0.02652361,59154.0,59153.0,0.1585998]
[1725139551511,0.02652361,59154.0,59153.0,0.3276528]
[1725139552157,0.02652361,59154.0,59153.0,0.3196528]
[1725139552611,0.02652361,59154.0,59153.0,0.3216528]
[1725139553022,0.02652361,59154.0,59153.0,0.3196528]
[1725139553443,0.02652361,59154.0,59153.0,0.3276528]
[1725139553657,0.169044,59157.0,59153.0,0.3276528]
[1725139553873,0.169044,59157.0,59153.0,0.2669528]
[1725139554076,0.169044,59157.0,59154.0,0.0606]
[1725139555710,0.169039,59158.0,59154.0,0.0606]
[1725139556403,0.169039,59158.0,59154.0,0.239649]
[1725139556844,0.169039,59158.0,59154.0,0.234649]
[1725139557051,0.169039,59158.0,59154.0,0.229649]
[1725139557309,0.169039,59158.0,59154.0,0.237649]
[1725139557536,0.169039,59158.0,59154.0,0.0686]
[1725139560085,0.19556228,59158.0,59154.0,0.0686]
[1725139561265,0.19638028,59158.0,59154.0,0.0686]
[1725139562203,0.19638028,59158.0,59154.0,0.23765]
[1725139562453,0.19638028,59158.0,59155.0,0.0625]
[1725139562909,0.02734128,59158.0,59155.0,0.231547]
[1725139563141,0.02734128,59158.0,59155.0,0.0625]
[1725139563700,0.02734128,59158.0,59155.0,0.231546]
[1725139563829,0.02734128,59158.0,59155.0,0.235546]
[1725139564066,0.02734128,59158.0,59155.0,0.239546]
[1725139567487,0.19638028,59158.0,59155.0,0.0705]
[1725139569199,0.169857,59158.0,59155.0,0.0705]
[1725139571396,0.169041,59157.0,59155.0,0.0705]
[1725139572467,0.1955644,59157.0,59155.0,0.0665]
[1725139572716,0.1955644,59157.0,59155.0,0.0675]
[1725139572932,0.0265234,59157.0,59155.0,0.0675]
[1725139573152,0.0265234,59157.0,59155.0,0.0725]
[1725139573361,0.1955654,59157.0,59155.0,0.0725]
[1725139574251,0.1955654,59157.0,59156.0,0.1451]
[1725139575224,0.169042,59157.0,59156.0,0.1451]
[1725139575462,0.169042,59157.0,59156.0,0.1501]
[1725139575908,0.169042,59157.0,59156.0,0.1551]
[1725139578283,0.169856,59158.0,59157.0,0.0625]
[1725139578917,0.19637912,59158.0,59157.0,0.0625]
[1725139579554,0.02734112,59158.0,59157.0,0.0625]
[1725139579991,0.02734112,59158.0,59157.0,0.0665]
[1725139580665,0.02734112,59158.0,59157.0,0.0705]
[1725139581568,0.000818,59158.0,59157.0,0.1459]
[1725139582011,0.00857999,59158.0,59157.0,0.1459]
[1725139583457,0.000818,59158.0,59157.0,0.1459]
[1725139584535,0.000818,59158.0,59157.0,0.314941]
[1725139584755,0.03509912,59158.0,59157.0,0.1459]
[1725139585642,0.00857681,59158.0,59157.0,0.1459]
[1725139588922,0.03509964,59158.0,59157.0,0.1459]
[1725139590043,0.20413764,59158.0,59157.0,0.1459]
[1725139593035,0.17761481,59158.0,59157.0,0.1459]
[1725139596171,0.20413762,59158.0,59157.0,0.1459]
[1725139599069,0.17761481,59158.0,59157.0,0.1459]
[1725139599539,0.17761481,59158.0,59157.0,0.1467998]
[1725139600409,0.00857681,59158.0,59157.0,0.1467998]
[1725139600688,0.17761481,59158.0,59157.0,0.1467998]
[1725139602275,0.20413737,59158.0,59157.0,0.1467998]
[1725139610197,0.54221437,59158.0,59157.0,0.0713998]
[1725139610412,0.88029137,59158.0,59157.0,0.0713998]
[1725139614007,0.88029137,59158.0,59157.0,0.0088998]
[1725139616885,0.88029137,59158.0,59157.0,0.0708998]
[1725139619952,0.68392018,59158.0,59157.0,0.0708998]
[1725139620154,0.676154,59158.0,59157.0,0.0708998]
[1725139620332,0.70267813,59158.0,59157.0,0.0708998]
[1725139620566,0.87171613,59158.0,59157.0,0.0708998]
[1725139625309,0.87171613,59158.0,59142.0,0.07610058]
[1725139625310,0.02652413,59158.0,59142.0,0.07610058]
[1725139625532,0.509295,59137.0,59136.0,0.0008998]
[1725139625768,0.509295,59137.0,59120.0,0.005]
[1725139625769,0.845665,59125.0,59121.0,0.005]
[1725139625974,0.845665,59125.0,59120.0,0.005]
[1725139625975,0.95285616,59125.0,59120.0,0.005]
[1725139626201,1.46024996,59125.0,59118.0,0.0008998]
[1725139626407,1.44384345,59125.0,59118.0,0.0008998]
[1725139628401,1.39112216,59125.0,59118.0,0.0008998]
[1725139628627,1.39912216,59125.0,59124.0,0.0018998]
[1725139628833,1.291931,59125.0,59124.0,0.0018998]
[1725139629036,1.39912216,59125.0,59124.0,0.0018998]
[1725139629240,1.39112216,59125.0,59124.0,0.0008998]
[1725139629440,1.40612216,59125.0,59124.0,0.0028998]
[1725139629638,1.39712216,59125.0,59124.0,0.0018998]
[1725139630017,1.40412216,59125.0,59124.0,0.0028998]
[1725139631651,1.74238816,59125.0,59124.0,0.0028998]
[1725139632483,1.76893065,59125.0,59124.0,0.0028998]
[1725139633988,1.66173949,59125.0,59124.0,0.0028998]
[1725139634699,1.76893065,59125.0,59124.0,0.0028998]
[1725139635849,1.77571765,59125.0,59124.0,0.0028998]
[1725139636269,1.66852649,59125.0,59124.0,0.0028998]
[1725139636558,1.77571765,59125.0,59124.0,0.0028998]
[1725139638456,1.74917516,59125.0,59124.0,0.0028998]
[1725139638970,0.696319,59125.0,59124.0,0.1532998]
[1725139639208,0.013,59125.0,59124.0,0.1532998]
[1725139639437,0.00818,59169.0,59124.0,0.1532998]
[1725139639438,0.17587,59142.0,59141.0,0.0751]
[1725139639730,0.338106,59153.0,59147.0,0.015]
[1725139639731,0.169067,59148.0,59147.0,0.015]
[1725139639956,0.507166,59152.0,59151.0,0.015]
[1725139640209,0.169055,59152.0,59151.0,0.0701]
[1725139640440,0.000818,59158.0,59157.0,0.0803]
[1725139642568,0.02734162,59158.0,59157.0,0.0803]
[1725139642828,0.02734162,59158.0,59157.0,0.0853]
[1725139648744,0.000818,59158.0,59157.0,0.0853]
[1725139648970,0.000818,59158.0,59157.0,0.09383]
[1725139650719,0.000818,59158.0,59157.0,0.15513]
[1725139650848,0.000818,59158.0,59157.0,0.324171]
[1725139660466,0.02733802,59158.0,59157.0,0.662254]
[1725139662843,0.02733802,59158.0,59157.0,0.670254]
[1725139663507,0.02733802,59158.0,59157.0,0.662254]
[1725139663711,0.02733802,59158.0,59157.0,0.673254]
[1725139663851,0.02733802,59158.0,59157.0,0.682254]
[1725139664309,0.02733802,59158.0,59157.0,0.662254]
[1725139664715,0.02733802,59158.0,59157.0,0.673254]
[1725139664879,0.02733802,59158.0,59157.0,0.662254]
[1725139665458,0.02733802,59158.0,59157.0,1.000337]
[1725139666355,0.02733802,59158.0,59157.0,1.024337]
[1725139666577,0.02733802,59158.0,59157.0,1.012337]
[1725139666870,0.02733802,59158.0,59157.0,0.014]
[1725139667101,0.507933,59158.0,59157.0,0.014]
[1725139667488,0.86776975,59158.0,59157.0,0.027]
[1725139667600,1.06161497,59158.0,59157.0,0.027]
[1725139668109,0.169055,59152.0,59151.0,0.0008998]
[1725139668333,0.3474814,59152.0,59151.0,0.0008998]
[1725139668563,0.4474814,59152.0,59151.0,0.0008998]
[1725139668794,0.269055,59152.0,59151.0,0.0008998]
[1725139669046,0.4474814,59152.0,59151.0,0.0008998]
[1725139670006,0.7855924,59152.0,59151.0,0.0008998]
[1725139670363,0.81211797,59152.0,59151.0,0.0008998]
[1725139672092,1.15022897,59152.0,59151.0,0.0008998]
[1725139672594,0.97180257,59152.0,59151.0,0.0008998]
[1725139673079,0.945277,59152.0,59151.0,0.0008998]
[1725139676503,0.97180437,59152.0,59151.0,0.0008998]
[1725139679344,0.945277,59152.0,59151.0,0.0008998]
[1725139679603,0.945277,59152.0,59151.0,0.0058998]
[1725139680076,0.945277,59152.0,59151.0,0.0098998]
[1725139685570,0.97180377,59152.0,59151.0,0.0098998]
[1725139688534,0.945277,59152.0,59151.0,0.0098998]
[1725139689251,1.05232216,59152.0,59151.0,0.0098998]
[1725139691839,1.07966704,59152.0,59151.0,0.0098998]
[1725139693757,0.97262188,59152.0,59151.0,0.0098998]
[1725139694252,0.65112682,59152.0,59151.0,0.0098998]
[1725139695416,0.82018182,59152.0,59151.0,0.0098998]
[1725139696295,0.92018182,59152.0,59151.0,0.0098998]
[1725139699058,0.89365494,59152.0,59151.0,0.0098998]
[1725139701198,0.100818,59152.0,59151.0,0.0198998]
[1725139701416,0.100818,59152.0,59151.0,0.35160778]
[1725139701417,0.000818,59152.0,59151.0,0.35160778]
[1725139701648,0.000818,59152.0,59151.0,0.3352578]
[1725139702676,0.000818,59152.0,59151.0,0.3312578]
[1725139703442,0.000818,59152.0,59151.0,0.3262578]
[1725139704292,0.000818,59152.0,59151.0,0.3332578]
[1725139704703,0.000818,59152.0,59151.0,0.3392578]
[1725139705353,0.000818,59152.0,59151.0,0.44080958]
[1725139706040,0.02734289,59152.0,59151.0,0.44080958]
[1725139708441,0.000818,59158.0,59152.0,0.0662]
[1725139708646,0.169045,59156.0,59155.0,0.0712]
[1725139709742,0.169042,59157.0,59155.0,0.0742]
[1725139710750,0.1,59156.0,59155.0,0.0742]
[1725139711193,0.1,59156.0,59155.0,0.11428066]
[1725139711412,0.100818,59158.0,59155.0,0.11628066]
[1725139711656,0.100818,59158.0,59155.0,0.0732]
[1725139711886,0.100818,59158.0,59155.0,0.0752]
[1725139712108,0.1273423,59158.0,59155.0,0.0752]
[1725139712307,0.2963813,59158.0,59155.0,0.0732]
[1725139712551,0.2963813,59158.0,59155.0,0.0712]
[1725139713013,0.2963813,59158.0,59155.0,0.0742]
[1725139713232,0.2963813,59158.0,59155.0,0.0712]
[1725139713496,0.2963813,59158.0,59155.0,0.0722]
[1725139713953,0.2963813,59158.0,59157.0,0.005]
[1725139713954,0.1273423,59158.0,59157.0,0.005]
[1725139714425,0.2963803,59158.0,59157.0,0.005]
[1725139716062,0.2963803,59158.0,59157.0,0.006]
[1725139718993,0.269856,59158.0,59157.0,0.006]
[1725139719917,0.100818,59158.0,59157.0,0.20776598]
[1725139722780,0.100818,59158.0,59157.0,0.27296598]
[1725139723023,0.000818,59158.0,59157.0,0.27296598]
[1725139723248,0.100818,59158.0,59157.0,0.27296598]
[1725139724331,0.000818,59158.0,59157.0,0.27296598]
[1725139726638,0.31055705,59163.0,59160.0,0.005]
[1725139726865,0.346183,59172.0,59160.0,0.005]
[1725139727089,0.169025,59163.0,59160.0,0.005]
[1725139728015,0.169027,59162.0,59161.0,0.0272962]
[1725139728661,0.29554901,59162.0,59161.0,0.0272962]
[1725139728875,0.29554901,59162.0,59160.0,0.005]
[1725139729238,0.1,59161.0,59160.0,0.005]
[1725139729540,0.269032,59161.0,59160.0,0.005]
[1725139734083,0.607092,59161.0,59160.0,0.005]
[1725139735075,0.269032,59161.0,59160.0,0.005]
[1725139735284,0.269032,59161.0,59160.0,0.0321966]
[1725139737106,0.29555424,59161.0,59160.0,0.0321966]
[1725139739968,0.63361424,59161.0,59160.0,0.0371966]
[1725139740168,0.607092,59161.0,59160.0,0.01]
[1725139743061,0.607092,59161.0,59160.0,0.005]
[1725139743270,0.607092,59161.0,59160.0,0.01]
[1725139743696,0.63361452,59161.0,59160.0,0.01]
[1725139743999,0.63361452,59161.0,59160.0,0.02038248]
[1725139744409,0.33361452,59161.0,59160.0,0.02038248]
[1725139744672,0.50264552,59161.0,59160.0,0.02038248]
[1725139744987,0.19555252,59161.0,59160.0,0.16198248]
[1725139746249,0.02652252,59161.0,59160.0,0.16198248]
[1725139747908,0.02652252,59161.0,59160.0,0.1516]
[1725139749070,0.169029,59162.0,59160.0,0.1516]
[1725139751623,0.169029,59162.0,59160.0,0.1524998]
[1725139752293,0.16903,59161.0,59160.0,0.1524998]
[1725139755626,0.1955522,59161.0,59160.0,0.1524998]
[1725139758581,0.5336122,59161.0,59160.0,0.1524998]
[1725139759016,0.50709,59161.0,59160.0,0.1524998]
[1725139762643,0.53361239,59161.0,59160.0,0.1524998]
[1725139764746,0.53443039,59161.0,59160.0,0.1524998]
[1725139769096,0.507908,59161.0,59160.0,0.1524998]
[1725139776140,0.845968,59161.0,59160.0,0.1524998]
[1725139778749,0.87249041,59161.0,59160.0,0.1524998]
[1725139781483,0.845968,59161.0,59160.0,0.1524998]
[1725139785044,0.87249046,59161.0,59160.0,0.1524998]
[1725139789078,0.845968,59161.0,59160.0,0.1524998]
[1725139797855,0.85746818,59161.0,59160.0,0.1524998]
[1725139798136,0.85746818,59161.0,59160.0,0.16783976]
[1725139798698,0.88399069,59161.0,59160.0,0.1524998]
[1725139801527,0.85746818,59161.0,59160.0,0.1524998]
[1725139804915,0.88399071,59161.0,59160.0,0.1524998]
[1725139807594,0.88399071,59161.0,59160.0,0.1474998]
[1725139807833,0.88399071,59161.0,59160.0,0.1524998]
[1725139809126,0.85746818,59161.0,59160.0,0.1524998]
[1725139812021,0.67612,59161.0,59160.0,0.1524998]
[1725139812449,0.84515,59161.0,59160.0,0.1524998]
[1725139812678,0.845968,59161.0,59160.0,0.1524998]
[1725139812895,0.845968,59161.0,59160.0,0.16783976]
[1725139818671,0.87249058,59161.0,59160.0,0.16783976]
[1725139819348,0.87249058,59161.0,59160.0,0.1524998]
[1725139821520,0.507908,59161.0,59160.0,0.1524998]
[1725139824943,0.53443047,59161.0,59160.0,0.1524998]
[1725139825085,0.19637047,59161.0,59160.0,0.1524998]
[1725139828139,0.02734047,59161.0,59160.0,0.1524998]
[1725139828358,0.02734047,59161.0,59160.0,0.21855226]
[1725139829052,0.000818,59161.0,59160.0,0.21855226]
[1725139829487,0.000818,59161.0,59160.0,0.1524998]
[1725139829935,0.10704516,59165.0,59160.0,0.1524998]
[1725139830317,0.169028,59162.0,59160.0,0.1524998]
[1725139831701,0.16903,59161.0,59160.0,0.1534998]
[1725139832344,0.16903,59161.0,59160.0,0.1524998]
[1725139832567,0.16903,59161.0,59160.0,0.16783976]
[1725139833963,0.26903,59161.0,59160.0,0.16783976]
[1725139836709,0.1,59161.0,59160.0,0.16783976]
[1725139836880,0.269028,59162.0,59160.0,0.16783976]
[1725139838776,0.29554932,59162.0,59160.0,0.16783976]
[1725139839146,0.29554932,59162.0,59161.0,0.01687396]
[1725139841718,0.269028,59162.0,59161.0,0.07807396]
[1725139844958,0.29554915,59162.0,59161.0,0.07807396]
[1725139846522,0.12652115,59162.0,59161.0,0.07807396]
[1725139846751,0.02652115,59162.0,59161.0,0.07807396]
[1725139849016,0.02652115,59162.0,59161.0,0.08307396]
[1725139849231,0.37688716,59163.0,59161.0,0.08307396]
[1725139850951,0.37688716,59163.0,59162.0,0.01641738]
[1725139851718,0.37688716,59163.0,59161.0,0.0662]
[1725139858187,0.269842,59163.0,59161.0,0.0662]
[1725139858850,0.29636175,59163.0,59161.0,0.0662]
[1725139860000,0.169027,59162.0,59161.0,0.0662]
[1725139860201,0.269027,59162.0,59161.0,0.0662]
[1725139860431,0.269027,59162.0,59161.0,0.08101996]
[1725139863201,0.269027,59162.0,59161.0,0.08191976]
[1725139863457,0.1,59162.0,59161.0,0.08191976]
[1725139865723,0.269027,59162.0,59161.0,0.08191976]
[1725139867362,0.269027,59162.0,59161.0,0.07691976]
[1725139867571,0.269027,59162.0,59161.0,0.0670998]
[1725139872099,0.29554702,59162.0,59161.0,0.0670998]
[1725139873128,0.63360102,59162.0,59161.0,0.0670998]
[1725139879323,0.607081,59162.0,59161.0,0.0670998]
[1725139880260,0.945135,59162.0,59161.0,0.0670998]
[1725139880492,0.945135,59162.0,59161.0,0.08200974]
[1725139881147,1.05218016,59162.0,59161.0,0.08200974]
[1725139882075,1.05218016,59162.0,59161.0,0.0670998]
[1725139885750,1.0787005,59162.0,59161.0,0.0670998]
[1725139888483,0.79002715,59162.0,59161.0,0.0620998]
[1725139888696,0.95905415,59162.0,59161.0,0.0670998]
[1725139889354,0.93253381,59162.0,59161.0,0.0670998]